fUSD/lending_fUSD_20260329
["ID","MTS","AMOUNT","RATE_DAILY","PERIOD"]
[419021886,1774769440914,-151.0,0.00012582,2]
[419021887,1774769440924,-192.03,0.00012588,2]
[419021888,1774769440934,-350.0,0.00012606,2]
[419021889,1774769440945,-232.371417,0.00012608,2]
[419021890,1774769440954,-1069.556504,0.00012608,2]
[419021891,1774769440963,-150.0,0.00012609,2]
[419021892,1774769440972,-150.0,0.00012609,2]
[419021893,1774769440982,-350.0,0.00012612,2]
[419021894,1774769440991,-350.0,0.00012635,2]
[419021895,1774769441000,-2000.0,0.00012641,2]
[419021896,1774769441010,-255.0,0.00012663,2]
[419021897,1774769441019,-429.29760846,0.00012667,2]
[419021898,1774769441029,-151.0,0.0001273,2]
[419021899,1774769441039,-614.6778,0.0001273,2]
[419021900,1774769441049,-614.6778,0.0001273,2]
[419021901,1774769441058,-614.6778,0.0001273,2]
[419021902,1774769441068,-614.6778,0.0001273,2]
[419021903,1774769441077,-151.0,0.0001273,2]
[419021904,1774769441087,-151.0,0.0001273,2]
[419021905,1774769441096,-37910.89333687,0.0001273,2]
[419021906,1774769441106,-313.0,0.00012735,2]
[419021907,1774769441115,-166.66,0.00012742,2]
[419021908,1774769441125,-1600.0,0.00012745,2]
[419021909,1774769441135,-9552.16786547,0.00012755,2]
[419021910,1774769441143,-500.0,0.00012755,2]
[419021911,1774769441153,-500.0,0.00012755,2]
[419021912,1774769441162,-500.0,0.00012755,2]
[419021913,1774769441172,-500.0,0.00012755,2]
[419021914,1774769441183,-500.0,0.00012755,2]
[419021915,1774769441192,-500.0,0.00012755,2]
[419021916,1774769441204,-500.0,0.00012755,2]
[419021917,1774769441214,-500.0,0.00012755,2]
[419021918,1774769441225,-500.0,0.00012755,2]
[419021919,1774769441235,-500.0,0.00012755,2]
[419021920,1774769441244,-500.0,0.00012755,2]
[419021921,1774769441254,-500.0,0.00012755,2]
[419021922,1774769441263,-500.0,0.00012755,2]
[419021923,1774769441273,-500.0,0.00012755,2]
[419021924,1774769441282,-500.0,0.00012755,2]
[419021925,1774769441291,-500.0,0.00012755,2]
[419021926,1774769441301,-500.0,0.00012755,2]
[419021927,1774769441311,-500.0,0.00012755,2]
[419021928,1774769441321,-500.0,0.00012755,2]
[419021929,1774769441332,-500.0,0.00012755,2]
[419021930,1774769441342,-500.0,0.00012755,2]
[419021931,1774769441353,-500.0,0.00012755,2]
[419021932,1774769441362,-500.0,0.00012755,2]
[419021933,1774769441373,-151.0,0.00012755,2]
[419021934,1774769441382,-250.0,0.00012755,2]
[419021935,1774769441391,-250.0,0.00012755,2]
[419021936,1774769441401,-174.61919141,0.00012755,2]
[419021937,1774769441410,-250.0,0.00012755,2]
[419021938,1774769441420,-250.0,0.00012755,2]
[419021939,1774769441429,-250.0,0.00012755,2]
[419021940,1774769441439,-250.0,0.00012755,2]
[419021941,1774769441449,-250.0,0.00012755,2]
[419021942,1774769441458,-250.0,0.00012755,2]
[419021943,1774769441468,-250.0,0.00012755,2]
[419021944,1774769441477,-423.43045451,0.00012755,2]
[419021945,1774769441486,-250.0,0.00012755,2]
[419021946,1774769441496,-250.0,0.00012755,2]
[419021947,1774769441506,-151.04919521,0.00012755,2]
[419021948,1774769441515,-751.86902123,0.00012755,2]
[419021949,1774769441525,-262.90206542,0.00012755,2]
[419021950,1774769441535,-1680.0,0.00012756,2]
[419021951,1774769441544,-250.0,0.00012757,2]
[419021952,1774769441555,-151.0,0.00012768,2]
[419021953,1774769441565,-1500.0,0.00012768,2]
[419021954,1774769441574,-1500.0,0.00012768,2]
[419021955,1774769441584,-1500.0,0.00012768,2]
[419021956,1774769441593,-1500.0,0.00012768,2]
[419021957,1774769441602,-1500.0,0.00012768,2]
[419021958,1774769441612,-1500.0,0.00012768,2]
[419021959,1774769441622,-1500.0,0.00012768,2]
[419021960,1774769441631,-1500.0,0.00012768,2]
[419021961,1774769441641,-16942.93920207,0.00012772,2]
[419021962,1774769441651,-434.361465,0.0001279,2]
[419021963,1774769441661,-434.361465,0.0001279,2]
[419021964,1774769441670,-434.361465,0.0001279,2]
[419021965,1774769441680,-434.361465,0.0001279,2]
[419021966,1774769441689,-500.0,0.00012794,2]
[419021967,1774769441698,-151.0,0.0001281,2]
[419021968,1774769441708,-151.0,0.0001281,2]
[419021969,1774769441718,-9905.5980765,0.0001281,2]
[419021970,1774769441727,-500.0,0.0001281,2]
[419021971,1774769441736,-151.0,0.0001281,2]
[419021972,1774769441746,-272.62944185,0.0001281,2]
[419021973,1774769441755,-731.76,0.00012812,2]
[419021974,1774769441764,-2612.95552758,0.00012826,2]
[419021975,1774769441774,-2612.95552758,0.00012826,2]
[419021976,1774769441783,-1153.0,0.00012847,2]
[419021977,1774769441792,-10272.10520533,0.00012865,2]
[419021978,1774769441802,-500.0,0.00012865,2]
[419021979,1774769441811,-151.0,0.00012865,2]
[419021980,1774769441820,-282.71673119,0.00012865,2]
[419021981,1774769441829,-1153.0,0.00012871,2]
[419021982,1774769441839,-200.0,0.00012887,2]
[419021983,1774769441847,-1153.0,0.00012893,2]
[419021984,1774769441856,-473.453545,0.0001292,2]
[419021985,1774769441865,-473.453545,0.0001292,2]
[419021986,1774769441875,-473.453545,0.0001292,2]
[419021987,1774769441884,-473.453545,0.0001292,2]
[419021988,1774769441893,-10652.17309792,0.0001292,2]
[419021989,1774769441903,-500.0,0.0001292,2]
[419021990,1774769441912,-151.0,0.0001292,2]
[419021991,1774769441921,-293.17725025,0.0001292,2]
[419021992,1774769441930,-1153.0,0.00012924,2]
[419021993,1774769441939,-165.22963,0.00012942,2]
[419021994,1774769441948,-11046.30350255,0.00012975,2]
[419021995,1774769441958,-500.0,0.00012975,2]
[419021996,1774769441966,-151.0,0.00012975,2]
[419021997,1774769441975,-304.02480851,0.00012975,2]
[419021998,1774769441984,-500.0,0.00013,14]
[419021999,1774769441994,-250.0,0.00013,2]
[419022000,1774769442003,-16942.93920207,0.00013007,2]
[419022001,1774769442012,-151.0,0.00013007,2]
[419022002,1774769442021,-614.6778,0.00013007,2]
[419022003,1774769442030,-614.6778,0.00013007,2]
[419022004,1774769442039,-614.6778,0.00013007,2]
[419022005,1774769442048,-614.677793,0.00013007,2]
[419022006,1774769442057,-151.0,0.00013007,2]
[419022007,1774769442067,-151.0,0.00013007,2]
[419022008,1774769442076,-37910.89333687,0.00013014,2]
[419022009,1774769442086,-350.0,0.00013015,2]
[419022010,1774769442095,-11455.01673214,0.0001303,2]
[419022011,1774769442105,-500.0,0.0001303,2]
[419022012,1774769442115,-151.0,0.0001303,2]
[419022013,1774769442124,-315.27372642,0.0001303,2]
[419022014,1774769442134,-434.361465,0.00013045,2]
[419022015,1774769442143,-434.361465,0.00013045,2]
[419022016,1774769442152,-434.361465,0.00013045,2]
[419022017,1774769442162,-434.361465,0.00013045,2]
[419022018,1774769442171,-5386.55943856,0.0001305,2]
[419022019,1774769442180,-500.0,0.00013068,2]
[419022020,1774769442191,-166.67,0.00013078,2]
[419022021,1774769442201,-9336.09971361,0.00013085,2]
[419022022,1774769442341,-287.68959405,0.00013085,2]
[419022023,1774769442358,-524.0,0.00013085,2]
[419022024,1774769442373,-1334.176,0.00013085,2]
[419022025,1774769442421,-396.88704357,0.00013085,2]
[419022026,1774769442431,-500.0,0.00013085,2]
[419022027,1774769442441,-151.0,0.00013085,2]
[419022028,1774769442450,-326.9388543,0.00013085,2]
[419022029,1774769442460,-731.76,0.00013086,2]
[419022030,1774769442469,-151.0,0.00013097,2]
[419022031,1774769442479,-151.0,0.0001314,2]
[419022032,1774769442488,-151.0,0.0001314,2]
[419022033,1774769442498,-12318.36988823,0.0001314,2]
[419022034,1774769442507,-500.0,0.0001314,2]
[419022035,1774769442517,-151.0,0.0001314,2]
[419022036,1774769442526,-339.03559191,0.0001314,2]
[419022037,1774769442535,-1153.0,0.00013156,2]
[419022038,1774769442545,-192.03,0.00013188,2]
[419022039,1774769442554,-12774.14957409,0.00013195,2]
[419022040,1774769442564,-500.0,0.00013195,2]
[419022041,1774769442573,-151.0,0.00013195,2]
[419022042,1774769442583,-587.0,0.0001323,2]
[419022043,1774769442593,-790.63680729,0.00013233,2]
[419022044,1774769442602,-16942.93920207,0.00013242,2]
[419022045,1774769442612,-473.453545,0.0001325,2]
[419022046,1774769442621,-473.453545,0.0001325,2]
[419022047,1774769442631,-473.453545,0.0001325,2]
[419022048,1774769442642,-473.453548,0.0001325,2]
[419022049,1774769442652,-11175.91304753,0.0001325,2]
[419022050,1774769442664,-2070.8800608,0.0001325,2]
[419022051,1774769442674,-500.0,0.0001325,2]
[419022052,1774769442684,-151.0,0.0001325,2]
[419022053,1774769442694,-8152.15207942,0.00013297,2]
[419022054,1774769442705,-15477.01210002,0.00013297,2]
[419022055,1774769442717,-7630.80463205,0.00013297,2]
[419022056,1774769442728,-503.99507571,0.00013297,2]
[419022057,1774769442741,-6146.92944967,0.00013297,2]
[419022058,1774769442751,-181.08010149,0.00013303,2]
[419022059,1774769442760,-272.56909538,0.00013305,2]
[419022060,1774769442772,-161.79236962,0.00013305,2]
[419022061,1774769442781,-434.361465,0.00013305,2]
[419022062,1774769442791,-434.361465,0.00013305,2]
[419022063,1774769442800,-434.361468,0.00013305,2]
[419022064,1774769442809,-276.25161951,0.00013305,2]
[419022065,1774769442837,-215.10017639,0.00012609,2]
[419022066,1774769442847,-151.0,0.00012612,2]
[419022067,1774769442856,-13460.67283383,0.00013305,2]
[419022068,1774769442866,-500.0,0.00013305,2]
[419022069,1774769442875,-151.0,0.00013305,2]
[419022070,1774769442885,-2007.28426366,0.00013316,2]
[419022071,1774769442894,-2000.0,0.00013316,2]
[419022072,1774769442903,-2000.0,0.00013316,2]
[419022073,1774769442913,-1095.96856595,0.00013316,2]
[419022074,1774769442922,-2000.0,0.00013316,2]
[419022075,1774769442931,-2000.0,0.00013316,2]
[419022076,1774769442941,-1320.33958231,0.00013316,2]
[419022077,1774769442951,-2000.0,0.00013316,2]
[419022078,1774769442960,-500.0,0.00013342,2]
[419022079,1774769442969,-5484.9120491,0.0001336,2]
[419022080,1774769442979,-11083.1330062,0.0001336,2]
[419022081,1774769442988,-731.76,0.0001336,2]
[419022082,1774769442998,-165.22963,0.00013361,2]
[419022083,1774769443007,-166.66,0.00013374,2]
[419022084,1774769443016,-1523.0,0.00013379,2]
[419022085,1774769443027,-300.43090297,0.00013379,2]
[419022086,1774769443036,-161.0,0.00013379,2]
[419022087,1774769443046,-3240.0,0.00013425,2]
[419022088,1774769443056,-200.0,0.00013435,2]
[419022089,1774769443066,-2612.95552758,0.00013441,2]
[419022090,1774769443076,-16942.93920207,0.00013477,2]
[419022091,1774769443086,-734.406,0.000135,2]
[419022092,1774769443096,-151.0,0.00013513,2]
[419022093,1774769443106,-350.0,0.00013529,2]
[419022094,1774769443116,-37910.89333687,0.0001358,2]
[419022095,1774769443127,-250.0,0.00013585,2]
[419022096,1774769443137,-964.0,0.00013606,2]
[419022097,1774769443147,-500.0,0.00013616,2]
[419022098,1774769443157,-1153.0,0.00013616,2]
[419022099,1774769443167,-151.0,0.00013625,2]
[419022100,1774769443176,-151.0,0.00013625,2]
[419022101,1774769443186,-731.76,0.00013634,2]
[419022102,1774769443196,-350.0,0.00013641,2]
[419022103,1774769443206,-587.0,0.00013654,2]
[419022104,1774769443215,-159.19,0.0001366,2]
[419022105,1774769443225,-165.22963,0.00013695,2]
[419022106,1774769443234,-165.22963,0.00013696,2]
[419022107,1774769443243,-205.11,0.00013697,2]
[419022108,1774769443252,-500.0,0.00013698,2]
[419022109,1774769443262,-500.0,0.00013698,2]
[419022110,1774769443271,-500.0,0.00013698,2]
[419022111,1774769443280,-500.0,0.00013698,2]
[419022112,1774769443290,-500.0,0.00013698,2]
[419022113,1774769443299,-500.0,0.00013698,2]
[419022114,1774769443308,-500.0,0.00013698,2]
[419022115,1774769443318,-500.0,0.00013698,2]
[419022116,1774769443327,-500.0,0.00013698,2]
[419022117,1774769443337,-500.0,0.00013698,2]
[419022118,1774769443347,-514.11510476,0.00013698,2]
[419022119,1774769443356,-500.0,0.00013698,2]
[419022120,1774769443367,-500.0,0.00013698,2]
[419022121,1774769443377,-500.0,0.00013698,2]
[419022122,1774769443386,-500.0,0.00013698,2]
[419022123,1774769443395,-500.0,0.00013698,2]
[419022124,1774769443405,-563.09074423,0.00013698,2]
[419022125,1774769443414,-500.0,0.00013698,2]
[419022126,1774769443423,-500.0,0.00013698,2]
[419022127,1774769443433,-500.0,0.00013698,2]
[419022128,1774769443442,-505.93653105,0.00013698,2]
[419022129,1774769443452,-500.0,0.00013698,2]
[419022130,1774769443462,-500.0,0.00013698,2]
[419022131,1774769443471,-504.79360134,0.00013698,2]
[419022132,1774769443480,-500.0,0.00013698,2]
[419022133,1774769443490,-500.0,0.00013698,2]
[419022134,1774769443500,-500.0,0.00013698,2]
[419022135,1774769443509,-500.0,0.00013698,2]
[419022136,1774769443518,-500.0,0.00013698,2]
[419022137,1774769443527,-500.0,0.00013698,2]
[419022138,1774769443536,-500.0,0.00013698,2]
[419022139,1774769443545,-500.0,0.00013698,2]
[419022140,1774769443555,-500.0,0.00013698,2]
[419022141,1774769443564,-500.0,0.00013698,2]
[419022142,1774769443574,-500.0,0.00013698,2]
[419022143,1774769443583,-500.0,0.00013698,2]
[419022144,1774769443592,-358.47552788,0.00013698,2]
[419022145,1774769443602,-500.0,0.00013698,2]
[419022146,1774769443612,-500.0,0.00013698,2]
[419022147,1774769443622,-500.0,0.00013698,2]
[419022148,1774769443631,-500.0,0.00013698,2]
[419022149,1774769443641,-500.0,0.00013698,2]
[419022150,1774769443651,-500.0,0.00013698,2]
[419022151,1774769443660,-500.0,0.00013698,2]
[419022152,1774769443670,-500.0,0.00013698,2]
[419022153,1774769443680,-500.0,0.00013698,2]
[419022154,1774769443689,-500.0,0.00013698,2]
[419022155,1774769443699,-500.0,0.00013698,2]
[419022156,1774769443708,-500.0,0.00013698,2]
[419022157,1774769443718,-500.0,0.00013698,2]
[419022158,1774769443727,-439.41953841,0.00013698,2]
[419022159,1774769443736,-511.61768064,0.00013698,2]
[419022160,1774769443745,-500.0,0.00013698,2]
[419022161,1774769443754,-500.0,0.00013698,2]
[419022162,1774769443763,-500.0,0.00013698,2]
[419022163,1774769443773,-500.0,0.00013698,2]
[419022164,1774769443783,-500.0,0.00013698,2]
[419022165,1774769443792,-381.5772541,0.00013698,2]
[419022166,1774769443802,-500.0,0.00013698,2]
[419022167,1774769443811,-500.0,0.00013698,2]
[419022168,1774769443821,-500.0,0.00013698,2]
[419022169,1774769443831,-500.0,0.00013698,2]
[419022170,1774769443840,-500.0,0.00013698,2]
[419022171,1774769443850,-500.0,0.00013698,2]
[419022172,1774769443859,-215.21613825,0.00013698,2]
[419022173,1774769443869,-505.30350392,0.00013698,2]
[419022174,1774769443879,-500.0,0.00013698,2]
[419022175,1774769443888,-500.0,0.00013698,2]
[419022176,1774769443897,-500.0,0.00013698,2]
[419022177,1774769443907,-500.0,0.00013698,2]
[419022178,1774769443916,-500.0,0.00013698,2]
[419022179,1774769443926,-548.79475367,0.00013698,2]
[419022180,1774769443935,-500.0,0.00013698,2]
[419022181,1774769443944,-500.0,0.00013698,2]
[419022182,1774769443954,-500.0,0.00013698,2]
[419022183,1774769443963,-500.0,0.00013698,2]
[419022184,1774769443972,-500.0,0.00013698,2]
[419022185,1774769443981,-500.0,0.00013698,2]
[419022186,1774769443990,-500.0,0.00013698,2]
[419022187,1774769444000,-361.97778999,0.00013698,2]
[419022188,1774769444009,-587.57676003,0.00013698,2]
[419022189,1774769444018,-500.0,0.00013698,2]
[419022190,1774769444028,-500.0,0.00013698,2]
[419022191,1774769444037,-500.0,0.00013698,2]
[419022192,1774769444046,-500.0,0.00013698,2]
[419022193,1774769444056,-500.0,0.00013698,2]
[419022194,1774769444067,-500.0,0.00013698,2]
[419022195,1774769444076,-500.0,0.00013698,2]
[419022196,1774769444085,-500.0,0.00013698,2]
[419022197,1774769444094,-500.0,0.00013698,2]
[419022198,1774769444104,-642.6141901,0.00013698,2]
[419022199,1774769444114,-500.0,0.00013698,2]
[419022200,1774769444123,-500.0,0.00013698,2]
[419022201,1774769444132,-500.0,0.00013698,2]
[419022202,1774769444142,-500.0,0.00013698,2]
[419022203,1774769444152,-500.0,0.00013698,2]
[419022204,1774769444162,-500.0,0.00013698,2]
[419022205,1774769444171,-500.0,0.00013698,2]
[419022206,1774769444266,-500.0,0.00013698,2]
[419022207,1774769444276,-500.0,0.00013698,2]
[419022208,1774769444286,-500.0,0.00013698,2]
[419022209,1774769444295,-500.0,0.00013698,2]
[419022210,1774769444305,-500.0,0.00013698,2]
[419022211,1774769444314,-500.0,0.00013698,2]
[419022212,1774769444323,-150.16805847,0.00013698,2]
[419022213,1774769444332,-541.09,0.00013698,2]
[419022214,1774769444342,-541.09,0.00013698,2]
[419022215,1774769444351,-541.09,0.00013698,2]
[419022216,1774769444361,-541.09,0.00013698,2]
[419022217,1774769444370,-541.09,0.00013698,2]
[419022218,1774769444380,-541.09,0.00013698,2]
[419022219,1774769444390,-541.09,0.00013698,2]
[419022220,1774769444399,-541.09,0.00013698,2]
[419022221,1774769444408,-541.09,0.00013698,2]
[419022222,1774769444417,-541.09,0.00013698,2]
[419022223,1774769444427,-541.09,0.00013698,2]
[419022224,1774769444436,-541.09,0.00013698,2]
[419022225,1774769444447,-541.09,0.00013698,2]
[419022226,1774769444457,-541.09,0.00013698,2]
[419022227,1774769444466,-541.09,0.00013698,2]
[419022228,1774769444476,-541.09,0.00013698,2]
[419022229,1774769444485,-541.09,0.00013698,2]
[419022230,1774769444495,-500.0,0.00013698,2]
[419022231,1774769444504,-500.0,0.00013698,2]
[419022232,1774769444514,-500.0,0.00013698,2]
[419022233,1774769444524,-500.0,0.00013698,2]
[419022234,1774769444534,-500.0,0.00013698,2]
[419022235,1774769444543,-390.56107017,0.00013698,2]
[419022236,1774769444553,-500.0,0.00013698,2]
[419022237,1774769444563,-500.0,0.00013698,2]
[419022238,1774769444572,-500.0,0.00013698,2]
[419022239,1774769444581,-500.0,0.00013698,2]
[419022241,1774769444591,-500.0,0.00013698,2]
[419022242,1774769444600,-500.0,0.00013698,2]
[419022243,1774769444610,-500.0,0.00013698,2]
[419022244,1774769444620,-500.0,0.00013698,2]
[419022245,1774769444630,-230.75097167,0.00013698,2]
[419022246,1774769444640,-505.23406925,0.00013698,2]
[419022247,1774769444650,-500.0,0.00013698,2]
[419022248,1774769444659,-500.0,0.00013698,2]
[419022249,1774769444668,-500.0,0.00013698,2]
[419022250,1774769444677,-500.0,0.00013698,2]
[419022251,1774769444687,-500.0,0.00013698,2]
[419022252,1774769444696,-500.0,0.00013698,2]
[419022253,1774769444706,-500.0,0.00013698,2]
[419022254,1774769444715,-500.0,0.00013698,2]
[419022255,1774769444725,-279.69293567,0.00013698,2]
[419022256,1774769444734,-515.10379154,0.00013698,2]
[419022257,1774769444744,-500.0,0.00013698,2]
[419022258,1774769444753,-500.0,0.00013698,2]
[419022259,1774769444763,-500.0,0.00013698,2]
[419022260,1774769444772,-569.13922893,0.00013698,2]
[419022261,1774769444781,-500.0,0.00013698,2]
[419022262,1774769444791,-500.0,0.00013698,2]
[419022263,1774769444800,-500.0,0.00013698,2]
[419022264,1774769444810,-500.0,0.00013698,2]
[419022265,1774769444819,-500.0,0.00013698,2]
[419022266,1774769444828,-500.0,0.00013698,2]
[419022267,1774769444837,-500.0,0.00013698,2]
[419022268,1774769444847,-500.0,0.00013698,2]
[419022269,1774769444856,-500.0,0.00013698,2]
[419022270,1774769444865,-500.0,0.00013698,2]
[419022271,1774769444875,-500.0,0.00013698,2]
[419022272,1774769444884,-179.21652627,0.00013698,2]
[419022273,1774769444894,-500.0,0.00013698,2]
[419022274,1774769444903,-505.66154803,0.00013698,2]
[419022275,1774769444913,-500.0,0.00013698,2]
[419022276,1774769444922,-500.0,0.00013698,2]
[419022277,1774769444931,-500.0,0.00013698,2]
[419022278,1774769444941,-500.0,0.00013698,2]
[419022279,1774769444950,-500.0,0.00013698,2]
[419022280,1774769444960,-247.0014411,0.00013698,2]
[419022281,1774769444968,-500.0,0.00013698,2]
[419022282,1774769444978,-500.0,0.00013698,2]
[419022283,1774769444987,-500.0,0.00013698,2]
[419022284,1774769444996,-500.0,0.00013698,2]
[419022285,1774769445005,-500.0,0.00013698,2]
[419022286,1774769445015,-511.55898747,0.00013698,2]
[419022287,1774769445024,-500.0,0.00013698,2]
[419022288,1774769445033,-513.92773084,0.00013698,2]
[419022289,1774769445042,-500.0,0.00013698,2]
[419022290,1774769445051,-500.0,0.00013698,2]
[419022291,1774769445061,-500.0,0.00013698,2]
[419022292,1774769445070,-500.0,0.00013698,2]
[419022293,1774769445079,-500.0,0.00013698,2]
[419022294,1774769445089,-513.52094574,0.00013698,2]
[419022295,1774769445098,-439.81701128,0.00013698,2]
[419022296,1774769445107,-483.0188777,0.00013698,2]
[419022297,1774769445117,-500.0,0.00013698,2]
[419022298,1774769445126,-500.0,0.00013698,2]
[419022299,1774769445135,-500.0,0.00013698,2]
[419022300,1774769445145,-500.0,0.00013698,2]
[419022301,1774769445154,-500.0,0.00013698,2]
[419022302,1774769445163,-500.0,0.00013698,2]
[419022303,1774769445173,-516.25712777,0.00013698,2]
[419022304,1774769445182,-500.0,0.00013698,2]
[419022305,1774769445191,-500.0,0.00013698,2]
[419022306,1774769445201,-500.0,0.00013698,2]
[419022307,1774769445211,-520.10779386,0.00013698,2]
[419022308,1774769445220,-500.0,0.00013698,2]
[419022309,1774769445229,-500.0,0.00013698,2]
[419022310,1774769445238,-500.0,0.00013698,2]
[419022311,1774769445248,-500.0,0.00013698,2]
[419022312,1774769445257,-536.96583205,0.00013698,2]
[419022313,1774769445267,-513.54711721,0.00013698,2]
[419022314,1774769445277,-500.0,0.00013698,2]
[419022315,1774769445286,-500.0,0.00013698,2]
[419022316,1774769445296,-496.98293292,0.00013698,2]
[419022317,1774769445305,-500.0,0.00013698,2]
[419022318,1774769445314,-500.0,0.00013698,2]
[419022319,1774769445324,-500.0,0.00013698,2]
[419022320,1774769445334,-318.81014793,0.00013698,2]
[419022321,1774769445343,-500.0,0.00013698,2]
[419022322,1774769445352,-500.0,0.00013698,2]
[419022323,1774769445361,-500.0,0.00013698,2]
[419022324,1774769445370,-500.0,0.00013698,2]
[419022325,1774769445380,-500.0,0.00013698,2]
[419022326,1774769445389,-500.0,0.00013698,2]
[419022327,1774769445399,-500.0,0.00013698,2]
[419022328,1774769445408,-500.0,0.00013698,2]
[419022329,1774769445418,-500.0,0.00013698,2]
[419022330,1774769445428,-500.0,0.00013698,2]
[419022331,1774769445437,-500.0,0.00013698,2]
[419022332,1774769445446,-500.0,0.00013698,2]
[419022333,1774769445455,-500.0,0.00013698,2]
[419022334,1774769445464,-500.0,0.00013698,2]
[419022335,1774769445473,-500.0,0.00013698,2]
[419022336,1774769445483,-500.0,0.00013698,2]
[419022337,1774769445492,-500.0,0.00013698,2]
[419022338,1774769445501,-500.0,0.00013698,2]
[419022339,1774769445511,-500.0,0.00013698,2]
[419022340,1774769445521,-500.0,0.00013698,2]
[419022341,1774769445531,-500.0,0.00013698,2]
[419022342,1774769445540,-500.0,0.00013698,2]
[419022343,1774769445550,-500.0,0.00013698,2]
[419022344,1774769445561,-500.0,0.00013698,2]
[419022345,1774769445572,-500.0,0.00013698,2]
[419022346,1774769445583,-500.0,0.00013698,2]
[419022347,1774769445594,-500.0,0.00013698,2]
[419022348,1774769445606,-500.0,0.00013698,2]
[419022349,1774769445617,-500.0,0.00013698,2]
[419022350,1774769445628,-500.0,0.00013698,2]
[419022351,1774769445639,-500.0,0.00013698,2]
[419022352,1774769445651,-500.0,0.00013698,2]
[419022353,1774769445662,-500.0,0.00013698,2]
[419022354,1774769445673,-500.0,0.00013698,2]
[419022355,1774769445683,-500.0,0.00013698,2]
[419022356,1774769445694,-500.0,0.00013698,2]
[419022357,1774769445707,-500.0,0.00013698,2]
[419022358,1774769445717,-500.0,0.00013698,2]
[419022359,1774769445728,-631.42723728,0.00013698,2]
[419022360,1774769445737,-150.0,0.00013699,2]
[419022361,1774769445747,-150.0,0.00013699,2]
[419022362,1774769445757,-150.0,0.00013699,2]
[419022363,1774769445767,-150.0,0.00013699,2]
[419022364,1774769445777,-150.0,0.00013699,2]
[419022365,1774769445787,-200.0,0.00013699,2]
[419022366,1774769445796,-1947.14,0.00013699,2]
[419022367,1774769445805,-151.0,0.00013699,2]
[419022368,1774769445814,-151.0,0.00013699,2]
[419022369,1774769445824,-151.0,0.00013699,2]
[419022370,1774769445833,-159.372413,0.00013699,2]
[419022371,1774769445843,-371.26,0.00013699,2]
[419022372,1774769445852,-151.0,0.00013699,2]
[419022373,1774769445861,-151.0,0.00013699,2]
[419022374,1774769445871,-151.0,0.00013699,2]
[419022375,1774769445882,-151.0,0.00013699,2]
[419022376,1774769445891,-151.0,0.00013699,2]
[419022377,1774769445901,-151.0,0.00013699,2]
[419022378,1774769445911,-151.0,0.00013699,2]
[419022379,1774769445921,-151.0,0.00013699,2]
[419022380,1774769445930,-151.0,0.00013699,2]
[419022381,1774769445939,-151.0,0.00013699,2]
[419022382,1774769445948,-151.0,0.00013699,2]
[419022383,1774769445958,-151.0,0.00013699,2]
[419022384,1774769445967,-151.0,0.00013699,2]
[419022385,1774769445976,-151.0,0.00013699,2]
[419022386,1774769445986,-151.0,0.00013699,2]